bitfinex/quotes_BTCUSD_20250814
["timestamp","ask_amount","ask_price","bid_price","bid_amount"]
[1755176229998,0.002,118670.0,118660.0,0.17791]
[1755176230440,0.002,118670.0,118660.0,0.34645879]
[1755176230893,0.002,118670.0,118660.0,0.42918204]
[1755176231102,0.002,118670.0,118660.0,0.17787]
[1755176231549,0.004,118670.0,118660.0,0.34641879]
[1755176231760,0.002,118670.0,118660.0,0.39791688]
[1755176232443,0.0026329,118690.0,118660.0,0.40634431]
[1755176232652,0.08535615,118690.0,118670.0,0.00100277]
[1755176232860,0.067465,118680.0,118650.0,0.17699029]
[1755176233071,0.15282138,118680.0,118660.0,0.17476]
[1755176233279,0.08535638,118680.0,118660.0,0.36078464]
[1755176233498,0.08272325,118680.0,118660.0,0.195306]
[1755176233726,0.001,118670.0,118660.0,0.196306]
[1755176234166,0.001,118670.0,118660.0,0.018476]
[1755176234348,0.1207141,118670.0,118660.0,0.002]
[1755176234657,0.0923066,118670.0,118660.0,0.17672]
[1755176234882,0.26084119,118670.0,118660.0,0.17672]
[1755176235028,0.08867325,118670.0,118660.0,0.17572]
[1755176235226,0.09717392,118670.0,118660.0,0.17472]
[1755176235430,0.0883066,118670.0,118660.0,0.17672]
[1755176235634,0.09167325,118670.0,118660.0,0.003]
[1755176235841,0.002,118680.0,118640.0,0.17999383]
[1755176236061,0.08535638,118680.0,118650.0,0.00100347]
[1755176236309,0.007,118670.0,118660.0,0.00507]
[1755176236447,0.012,118670.0,118660.0,0.00507]
[1755176236643,0.012,118670.0,118660.0,0.17361879]
[1755176236856,0.007,118670.0,118660.0,0.03828808]
[1755176237061,0.007,118670.0,118660.0,0.17975321]
[1755176237295,0.0221188,118670.0,118660.0,0.17875]
[1755176237682,0.10484205,118670.0,118660.0,0.17564]
[1755176237870,0.10779205,118670.0,118660.0,0.001]
[1755176238133,0.10079205,118670.0,118660.0,0.17464]
[1755176238343,0.1034254,118670.0,118660.0,0.17464]
[1755176238560,0.0201188,118670.0,118660.0,0.193104]
[1755176238979,0.0201188,118670.0,118660.0,0.018464]
[1755176239184,0.009,118670.0,118660.0,0.1756]
[1755176239375,0.0241169,118670.0,118660.0,0.1756]
[1755176240325,0.0241169,118670.0,118660.0,0.17556]
[1755176240530,0.0241169,118670.0,118660.0,0.54917879]
[1755176240738,0.0241169,118670.0,118660.0,0.62095224]
[1755176240949,0.009,118670.0,118660.0,0.70367549]
[1755176241166,0.009,118670.0,118660.0,0.44639224]
[1755176241379,0.009,118670.0,118660.0,0.37461879]
[1755176241592,0.009,118670.0,118660.0,0.37154879]
[1755176241802,0.01912181,118670.0,118660.0,0.54813879]
[1755176242004,0.01512181,118670.0,118660.0,0.54813879]
[1755176242211,0.01712181,118670.0,118660.0,0.54913879]
[1755176242387,0.01712181,118670.0,118660.0,0.62090824]
[1755176242649,0.01912699,118670.0,118660.0,0.62090824]
[1755176242858,0.01912717,118670.0,118660.0,0.70363149]
[1755176243061,0.002,118670.0,118660.0,0.70263149]
[1755176243273,0.00558246,118710.0,118670.0,0.16852134]
[1755176243486,0.15313825,118700.0,118670.0,0.08248443]
[1755176243693,0.067465,118680.0,118660.0,0.27376945]
[1755176243909,0.067465,118680.0,118670.0,0.17548293]
[1755176243910,0.08260038,118680.0,118670.0,0.17548293]
[1755176244121,0.01513538,118680.0,118670.0,0.17448]
[1755176244534,0.01513538,118680.0,118670.0,0.212128]
[1755176244738,0.01513538,118680.0,118670.0,0.17448]
[1755176245154,0.01513538,118680.0,118660.0,0.203]
[1755176245355,0.10080863,118680.0,118670.0,0.17444]
[1755176245556,0.10480863,118680.0,118670.0,0.17544]
[1755176245667,0.10980863,118680.0,118670.0,0.001]
[1755176245874,0.248,118670.0,118660.0,0.202]
[1755176246082,0.51734874,118670.0,118640.0,0.20204]
[1755176246292,0.08830682,118660.0,118640.0,0.20204]
[1755176246534,0.1699072,118660.0,118640.0,0.20204]
[1755176246739,0.00558379,118650.0,118640.0,0.20204]
[1755176246942,0.27200542,118650.0,118640.0,0.37644]
[1755176247159,0.09980863,118650.0,118640.0,0.20204]
[1755176247417,0.10244242,118650.0,118640.0,0.37644]
[1755176247630,0.09980863,118650.0,118640.0,0.37644]
[1755176247798,0.09785863,118650.0,118640.0,0.37644]
[1755176248101,0.01513538,118650.0,118640.0,0.37644]
[1755176248534,0.01513538,118650.0,118640.0,0.5450172]
[1755176248854,0.006,118650.0,118640.0,0.61637806]
[1755176249064,0.006,118650.0,118640.0,0.61755806]
[1755176249277,0.013,118650.0,118640.0,0.61855806]
[1755176249487,0.007,118650.0,118640.0,0.44898086]
[1755176249696,0.007,118650.0,118640.0,0.44780086]
[1755176249917,0.03215235,118650.0,118640.0,0.44880086]
[1755176251419,0.03215235,118650.0,118640.0,0.44872086]
[1755176251617,0.02815235,118650.0,118640.0,0.37736]
[1755176251975,0.03215235,118650.0,118640.0,0.37736]
[1755176252179,0.039,118640.0,118630.0,0.20204]
[1755176253250,0.039,118640.0,118630.0,0.37628]
[1755176253465,0.042,118640.0,118620.0,0.16460555]
[1755176253686,0.042,118640.0,118620.0,0.30181634]
[1755176253925,0.042,118640.0,118620.0,0.30299634]
[1755176254129,0.042,118640.0,118630.0,0.17059613]
[1755176254339,0.042,118640.0,118630.0,0.25249466]
[1755176254556,0.042,118640.0,118630.0,0.0016432]
[1755176254756,0.046,118640.0,118630.0,0.00229189]
[1755176254956,0.04895,118640.0,118630.0,0.17638661]
[1755176255201,0.07595,118640.0,118600.0,0.37067344]
[1755176255380,0.05095,118640.0,118600.0,0.25035669]
[1755176255654,0.071,118640.0,118610.0,0.17062467]
[1755176255875,0.071,118640.0,118620.0,0.00200503]
[1755176255876,0.046,118640.0,118620.0,0.00200503]
[1755176256096,0.074,118640.0,118620.0,0.00200503]
[1755176256310,0.067,118640.0,118620.0,0.00200503]
[1755176256519,0.064,118640.0,118620.0,0.16860462]
[1755176256733,0.039,118640.0,118630.0,0.17416]
[1755176256943,0.039,118640.0,118630.0,0.42547466]
[1755176257116,0.043,118640.0,118630.0,0.42547466]
[1755176257317,0.043,118640.0,118630.0,0.42721436]
[1755176257518,0.039,118640.0,118630.0,0.42721436]
[1755176257721,0.039,118640.0,118630.0,0.49101311]
[1755176257927,0.047,118640.0,118630.0,0.31685311]
[1755176258135,0.047,118640.0,118630.0,0.1482617]
[1755176258285,0.047,118640.0,118630.0,0.25684325]
[1755176258483,0.045,118640.0,118630.0,0.25684325]
[1755176258742,0.048,118640.0,118630.0,0.42543466]
[1755176258950,0.048,118640.0,118630.0,0.42936874]
[1755176259178,0.042,118640.0,118630.0,0.42936874]
[1755176259339,0.042,118640.0,118630.0,0.49512263]
[1755176259540,0.05,118640.0,118630.0,0.49612263]
[1755176260024,0.05,118640.0,118630.0,0.31806855]
[1755176260193,0.042,118640.0,118630.0,0.14847714]
[1755176260372,0.042,118640.0,118630.0,0.25680325]
[1755176260601,0.049,118640.0,118630.0,0.25780325]
[1755176260873,0.046,118640.0,118630.0,0.25776325]
[1755176261123,0.046,118640.0,118630.0,0.08372325]
[1755176261356,0.049,118640.0,118630.0,0.42635466]
[1755176261569,0.049,118640.0,118630.0,0.48930716]
[1755176261977,0.049,118640.0,118630.0,0.71634716]
[1755176262658,0.049,118640.0,118630.0,0.72028124]
[1755176263385,0.049,118640.0,118630.0,1.02876224]
[1755176263601,0.042,118640.0,118630.0,1.02876224]
[1755176263845,0.042,118640.0,118630.0,0.81994816]
[1755176264054,0.046,118640.0,118630.0,0.51956516]
[1755176264287,0.039,118640.0,118630.0,0.51630716]
[1755176264531,0.041,118640.0,118630.0,0.37371575]
[1755176264749,0.048,118640.0,118630.0,0.52363575]
[1755176264994,0.041,118640.0,118630.0,0.52263575]
[1755176265209,0.039,118640.0,118630.0,0.52163575]
[1755176265435,0.041,118640.0,118630.0,0.69122716]
[1755176265659,0.041,118640.0,118630.0,0.34871575]
[1755176265889,0.041,118640.0,118630.0,0.69118716]
[1755176266370,0.048,118640.0,118630.0,0.69218716]
[1755176266590,0.048,118640.0,118630.0,0.69118716]
[1755176267033,0.056,118640.0,118630.0,0.69218716]
[1755176267482,0.056,118640.0,118630.0,0.71718716]
[1755176268814,0.056,118640.0,118630.0,0.86636916]
[1755176269293,0.056,118640.0,118630.0,0.87095336]
[1755176269513,0.056,118640.0,118630.0,0.86636916]
[1755176269738,0.05577664,118640.0,118630.0,1.2292886]
[1755176270434,0.248,118670.0,118660.0,0.19354879]
[1755176270704,0.248,118670.0,118660.0,0.48620198]
[1755176271157,0.248,118670.0,118660.0,1.62009318]
[1755176271577,0.248,118670.0,118660.0,1.63904106]
[1755176271804,0.0333,118690.0,118680.0,0.19352039]
[1755176272030,0.0333,118690.0,118680.0,0.44988364]
[1755176272257,0.0333,118690.0,118680.0,1.2131361]
[1755176272480,0.0333,118690.0,118680.0,1.5531361]
[1755176272986,0.0333,118690.0,118680.0,1.59041922]
[1755176273437,0.0333,118690.0,118680.0,1.5363879]
[1755176273665,0.0333,118690.0,118680.0,0.9313509]
[1755176273892,0.0333,118690.0,118680.0,0.7577509]
[1755176274111,0.0333,118690.0,118680.0,0.76231494]
[1755176274359,0.0333,118690.0,118680.0,0.93587494]
[1755176274808,0.0333,118690.0,118680.0,0.9313109]
[1755176275027,0.0333,118690.0,118680.0,0.93587494]
[1755176275028,0.0343,118690.0,118680.0,0.93587494]
[1755176275465,0.0343,118690.0,118680.0,0.8259279]
[1755176275943,0.0333,118690.0,118680.0,0.8259279]
[1755176276390,0.00306,118710.0,118700.0,0.16849199]
[1755176276640,0.00306,118710.0,118700.0,0.11892182]
[1755176277066,0.00306,118710.0,118700.0,0.29236182]
[1755176277512,0.00306,118710.0,118700.0,0.20963857]
[1755176277734,0.00306,118710.0,118700.0,0.03619857]
[1755176278219,0.14311,118710.0,118700.0,0.20021986]
[1755176278445,0.14311,118710.0,118700.0,0.19721986]
[1755176278889,0.14511,118710.0,118700.0,0.19821986]
[1755176279784,0.14511,118710.0,118700.0,0.20121986]
[1755176280001,0.14511,118710.0,118700.0,0.19821986]
[1755176280460,0.14311,118710.0,118700.0,0.19721986]
[1755176280687,0.12411,118710.0,118700.0,0.19821986]
[1755176280917,0.00906,118710.0,118700.0,0.19821986]
[1755176281150,0.00906,118710.0,118700.0,0.4494351]
[1755176281370,0.006,118710.0,118700.0,0.28094311]
[1755176281603,0.02806,118720.0,118700.0,0.27994311]
[1755176281827,0.02806,118720.0,118710.0,0.25320222]
[1755176281828,0.00306,118720.0,118710.0,0.25320222]
[1755176282090,0.00306,118740.0,118720.0,0.16846342]
[1755176282309,0.00306,118740.0,118730.0,0.25796353]
[1755176282525,0.00306,118740.0,118730.0,0.25596325]
[1755176282779,0.02806,118740.0,118730.0,0.25596325]
[1755176283272,0.00306,118740.0,118730.0,0.25596325]
[1755176283516,0.02806,118740.0,118730.0,0.02559632]
[1755176283782,0.02806,118740.0,118720.0,0.16845931]
[1755176284011,0.00306,118740.0,118730.0,0.004]
[1755176284242,0.025,118760.0,118730.0,0.26559542]
[1755176284466,0.02806,118760.0,118740.0,0.0019997]
[1755176284695,0.00306,118760.0,118740.0,0.43473944]
[1755176284913,0.02806,118760.0,118750.0,0.16842105]
[1755176285150,0.025,118770.0,118750.0,0.2511443]
[1755176285392,0.02806,118770.0,118760.0,0.17511895]
[1755176285660,0.02806,118770.0,118760.0,0.17312]
[1755176286403,0.02806,118790.0,118760.0,0.26426359]
[1755176286650,0.00306,118790.0,118780.0,0.16837851]
[1755176286857,0.00299,118810.0,118780.0,0.43260068]
[1755176287044,0.02799,118800.0,118790.0,0.08272325]
[1755176287303,0.00299,118800.0,118790.0,0.25576325]
[1755176287567,0.00299,118820.0,118790.0,0.4325458]
[1755176287797,0.025,118810.0,118800.0,0.17034622]
[1755176288061,0.00299,118820.0,118810.0,0.16833599]
[1755176288272,0.00299,118840.0,118810.0,0.43247603]
[1755176288508,0.00299,118840.0,118820.0,0.25304063]
[1755176288758,0.025,118850.0,118830.0,0.17495585]
[1755176288994,0.00299,118860.0,118840.0,0.08471866]
[1755176289245,0.04052786,118890.0,118850.0,0.68137396]
[1755176289477,0.03298108,118890.0,118870.0,0.34]
[1755176289699,0.0178761,118890.0,118880.0,0.25763689]
[1755176289930,0.0178761,118890.0,118880.0,0.28180811]
[1755176290157,0.0178761,118890.0,118880.0,0.31782406]
[1755176290388,0.03597108,118890.0,118880.0,0.31778406]
[1755176290643,0.0288661,118890.0,118880.0,0.48602093]
[1755176290869,0.0258661,118890.0,118880.0,0.31778406]
[1755176291094,0.0208661,118890.0,118880.0,0.31778406]
[1755176291327,0.0208761,118890.0,118880.0,0.48602093]
[1755176291556,0.0228761,118890.0,118880.0,0.49200795]
[1755176292199,0.0228761,118890.0,118880.0,0.51700795]
[1755176292634,0.0228761,118890.0,118880.0,0.92447295]
[1755176293077,0.00299,118930.0,118910.0,0.16819017]
[1755176293302,0.00299,118950.0,118920.0,0.44133595]
[1755176293542,0.02799,118940.0,118920.0,0.09206763]
[1755176293761,0.00299,118930.0,118920.0,0.08272325]
[1755176293984,0.00299,118940.0,118920.0,0.42358114]
[1755176294212,0.11768,118970.0,118920.0,0.29552324]
[1755176294439,0.11768,118970.0,118920.0,0.11389858]
[1755176294440,0.00299,118940.0,118920.0,0.11389858]
[1755176294666,0.11768,118960.0,118930.0,0.17264]
[1755176294906,0.14268,118960.0,118940.0,0.08272325]
[1755176295130,0.025,118960.0,118950.0,0.1726]
[1755176295362,0.00299,118960.0,118950.0,0.26426791]
[1755176295795,0.02799,118960.0,118950.0,0.25532325]
[1755176296006,0.02799,118960.0,118950.0,0.17252]
[1755176296401,0.02799,118960.0,118950.0,0.189772]
[1755176296592,0.00299,118960.0,118950.0,0.189772]
[1755176296806,0.00299,118960.0,118950.0,0.27696758]
[1755176297125,0.00799,118960.0,118950.0,0.27249525]
[1755176297566,0.00299,118960.0,118950.0,0.27249525]
[1755176297975,0.00899,118960.0,118950.0,0.09997525]
[1755176298190,0.03399,118960.0,118950.0,0.17244]
[1755176298449,0.02799,118960.0,118950.0,0.17244]
[1755176298664,0.00299,118960.0,118950.0,0.17244]
[1755176299083,0.02799,118960.0,118930.0,0.24403821]
[1755176299287,0.02799,118960.0,118940.0,0.25508325]
[1755176299511,0.02799,118960.0,118940.0,0.2572041]
[1755176299712,0.00799,118960.0,118940.0,0.25508325]
[1755176299941,0.03299,118960.0,118940.0,0.25508325]
[1755176300127,0.00299,118960.0,118940.0,0.25508325]
[1755176300329,0.00299,118960.0,118940.0,0.28892481]
[1755176300537,0.005,118960.0,118950.0,0.0042417]
[1755176300763,0.005,118960.0,118950.0,0.08696495]
[1755176300956,0.00299,118980.0,118950.0,0.08696495]
[1755176301160,0.00299,118980.0,118960.0,0.25920495]
[1755176301383,0.00299,118980.0,118960.0,0.29187194]
[1755176301592,0.0252,118990.0,118960.0,0.29187194]
[1755176301805,0.0002,118990.0,118960.0,0.46840054]
[1755176302012,0.0002,118990.0,118960.0,0.72321061]
[1755176302224,0.0002,118990.0,118960.0,0.69504054]
[1755176302426,0.0002,118990.0,118970.0,0.16810943]
[1755176302574,0.00299,118980.0,118970.0,0.13239713]
[1755176302770,0.00299,118980.0,118970.0,0.30455713]
[1755176302979,0.00299,118980.0,118970.0,0.04967388]
[1755176302980,0.03099,118980.0,118970.0,0.04967388]
[1755176303180,0.19908547,118980.0,118960.0,0.23430699]
[1755176303400,0.39351368,118970.0,118940.0,0.03384156]
[1755176303605,0.39351368,118970.0,118930.0,0.17212]
[1755176303606,0.025,118940.0,118930.0,0.17212]
[1755176303831,0.02799,118940.0,118930.0,0.17212]
[1755176304446,0.00299,118940.0,118930.0,0.25484325]
[1755176304678,0.02799,118960.0,118930.0,0.25484325]
[1755176304832,0.025,118950.0,118930.0,0.25484325]
[1755176305039,0.00299,118940.0,118930.0,0.02548433]
[1755176305250,0.00299,118940.0,118930.0,0.17204]
[1755176305448,0.00299,118940.0,118890.0,0.294324]
[1755176305449,0.025,118930.0,118890.0,0.294324]
[1755176305649,0.02799,118920.0,118900.0,0.17204]
[1755176305855,0.00299,118910.0,118900.0,0.17204]
[1755176306663,0.27890871,118910.0,118900.0,0.17196]
[1755176306865,0.39658768,118910.0,118900.0,0.017196]
[1755176307232,0.20161899,118900.0,118860.0,0.2016]
[1755176307405,0.025,118890.0,118870.0,0.17196]
[1755176307636,0.02799,118890.0,118870.0,0.17196]
[1755176307838,0.00299,118880.0,118870.0,0.17196]
[1755176308044,0.00199,118880.0,118870.0,0.209316]
[1755176308217,0.00199,118880.0,118870.0,0.037356]
[1755176308218,0.02699,118880.0,118870.0,0.037356]
[1755176308447,0.02699,118880.0,118870.0,0.209276]
[1755176309405,0.025,118890.0,118870.0,0.29199925]
[1755176309605,0.001,118890.0,118880.0,0.08272325]
[1755176309806,0.001,118890.0,118880.0,0.29698508]
[1755176310441,0.001,118890.0,118880.0,0.66022911]
[1755176310650,0.025,118930.0,118890.0,0.16820596]
[1755176310870,0.025,118920.0,118900.0,0.08272325]
[1755176311071,0.025,118920.0,118880.0,0.5849177]
[1755176311072,0.02799,118910.0,118880.0,0.04602496]
[1755176311273,0.02799,118900.0,118890.0,0.17184]
[1755176311515,0.02799,118900.0,118870.0,0.037356]
[1755176311516,0.025,118890.0,118870.0,0.037356]
[1755176311813,0.025,118890.0,118880.0,0.1718]
[1755176312010,0.025,118890.0,118870.0,0.037356]
[1755176312156,0.025,118890.0,118880.0,0.1718]
[1755176312352,0.025,118890.0,118880.0,0.1927156]
[1755176312753,0.9861865,118890.0,118880.0,0.0209156]
[1755176312957,0.023,118860.0,118830.0,0.17672183]
[1755176313196,0.023,118870.0,118840.0,0.17176]
[1755176313431,0.022,118860.0,118850.0,0.067465]
[1755176313637,0.02499,118860.0,118850.0,0.239225]
[1755176314185,0.00299,118860.0,118850.0,0.239225]
[1755176314388,0.00299,118860.0,118850.0,0.0913875]
[1755176314595,0.022,118870.0,118850.0,0.27836575]
[1755176314813,0.02499,118870.0,118850.0,0.27836575]
[1755176315027,0.00299,118860.0,118850.0,0.0239225]
[1755176315226,0.02499,118860.0,118850.0,0.1956025]
[1755176315429,0.02499,118860.0,118850.0,0.36388184]
[1755176315430,0.022,118860.0,118850.0,0.36388184]
[1755176315637,0.00299,118880.0,118850.0,0.3722958]
[1755176315847,0.003,118860.0,118850.0,0.45601905]
[1755176316495,0.00299,118900.0,118860.0,0.1766687]
[1755176316496,0.022,118890.0,118860.0,0.1766687]
[1755176316720,0.022,118880.0,118870.0,0.17164]
[1755176317085,0.025,118880.0,118870.0,0.17164]
[1755176317288,0.00309,118880.0,118870.0,0.17164]
[1755176317591,0.02509,118880.0,118870.0,0.17164]
[1755176318096,0.02509,118880.0,118860.0,0.06316877]
[1755176318340,0.02509,118880.0,118870.0,0.1716]
[1755176318558,0.00309,118900.0,118870.0,0.43098671]
[1755176318774,0.02509,118900.0,118880.0,0.25095868]
[1755176318990,0.00309,118920.0,118880.0,0.25937196]
[1755176319206,0.08581325,118920.0,118890.0,0.17156]
[1755176319429,0.022,118900.0,118890.0,0.0430932]
[1755176319660,0.02509,118900.0,118890.0,0.17156]
[1755176320526,0.02509,118900.0,118890.0,0.17256]
[1755176321761,0.02509,118900.0,118890.0,0.17156]
[1755176322118,0.02909,118900.0,118890.0,0.17256]
[1755176322320,0.02909,118900.0,118890.0,0.17248]
[1755176322553,0.02909,118900.0,118890.0,0.189728]
[1755176322765,0.026,118900.0,118890.0,0.189728]
[1755176323906,0.02909,118900.0,118890.0,0.189728]
[1755176324524,0.026,118900.0,118890.0,0.189728]
[1755176324738,0.1170692,118900.0,118890.0,0.17248]
[1755176324937,0.1170692,118900.0,118890.0,0.001]
[1755176324938,1.11518982,118900.0,118890.0,0.001]
[1755176325139,1.10993387,118900.0,118890.0,0.001]
[1755176325550,0.40331182,118900.0,118890.0,0.001]
[1755176325761,0.41842002,118900.0,118890.0,0.001]
[1755176325958,1.01218445,118900.0,118890.0,0.001]
[1755176326175,1.01218445,118900.0,118810.0,0.270105]
[1755176326176,0.19029833,118840.0,118810.0,0.269105]
[1755176326381,0.02509,118840.0,118820.0,0.17128]
[1755176326585,0.022,118830.0,118820.0,0.17128]
[1755176326799,0.021,118830.0,118820.0,0.17128]
[1755176327001,0.021,118830.0,118820.0,0.2153185]
[1755176327211,0.02409,118830.0,118820.0,0.2153185]
[1755176329135,0.02609,118830.0,118820.0,0.2163185]
[1755176329889,0.023,118830.0,118820.0,0.2163185]
[1755176330309,0.002,118830.0,118820.0,0.30104175]
[1755176330919,0.002,118830.0,118820.0,0.2163185]
[1755176331093,0.002,118830.0,118820.0,0.0450385]
[1755176331294,0.023,118830.0,118820.0,0.2161585]
[1755176331518,0.002,118830.0,118820.0,0.2161585]
[1755176331722,0.002,118830.0,118820.0,0.46920358]
[1755176331922,0.002,118830.0,118820.0,0.30088175]
[1755176332730,0.002,118830.0,118820.0,0.29888175]
[1755176333600,0.002,118830.0,118820.0,0.30088175]
[1755176333809,0.002,118830.0,118820.0,0.29888175]
[1755176335167,0.002,118830.0,118820.0,0.2159985]
[1755176335794,0.023,118830.0,118820.0,0.2159985]
[1755176335998,0.023,118830.0,118820.0,0.0450385]
[1755176336203,0.023,118830.0,118820.0,0.17192]
[1755176337376,0.03813789,118830.0,118820.0,0.17192]
[1755176337580,0.20953555,118830.0,118820.0,0.001]
[1755176338003,0.2922588,118830.0,118820.0,0.17184]
[1755176338846,0.2902588,118830.0,118820.0,0.17084]
[1755176339055,0.2902588,118830.0,118820.0,0.208088]
[1755176339677,0.2942588,118830.0,118820.0,0.208088]
[1755176339887,0.16834557,118810.0,118790.0,0.067465]
[1755176340095,0.02409,118810.0,118800.0,0.17076]
[1755176340350,0.021,118810.0,118800.0,0.25348325]
[1755176340564,0.004,118830.0,118800.0,0.43224861]
[1755176340775,0.01913419,118830.0,118820.0,0.067465]
[1755176340990,0.30311164,118880.0,118820.0,0.48922953]
[1755176341207,0.021,118840.0,118820.0,0.49964562]
[1755176341417,0.01513455,118840.0,118830.0,0.25303091]
[1755176341623,0.03613455,118840.0,118830.0,0.08272325]
[1755176341839,0.021,118830.0,118800.0,0.5992486]
[1755176342043,0.021,118830.0,118810.0,0.26182004]
[1755176342256,0.001,118830.0,118810.0,0.15890816]
[1755176342505,0.001,118830.0,118790.0,0.067465]
[1755176342506,0.022,118830.0,118820.0,0.17068]
[1755176342714,0.021,118830.0,118820.0,0.17068]
[1755176342924,0.0361386,118830.0,118820.0,0.17068]
[1755176344024,0.021,118820.0,118790.0,0.069465]
[1755176344233,0.021,118800.0,118790.0,0.14134935]
[1755176344447,0.021,118800.0,118790.0,0.01]
[1755176344662,0.02409,118800.0,118790.0,0.1806]
[1755176345308,0.02409,118800.0,118790.0,0.1706]
[1755176345522,0.02409,118800.0,118790.0,0.1716]
[1755176345725,0.02409,118800.0,118790.0,0.18876]
[1755176345937,0.02409,118800.0,118790.0,0.18776]
[1755176346151,0.00525595,118810.0,118790.0,0.18776]
[1755176346152,0.021,118810.0,118790.0,0.18876]
[1755176346380,0.023,118800.0,118790.0,0.18876]
[1755176347229,0.003,118800.0,118790.0,0.18876]
[1755176347441,0.003,118800.0,118790.0,0.27048325]
[1755176347867,0.003,118800.0,118790.0,0.27248325]
[1755176348095,0.006,118800.0,118790.0,0.18776]
[1755176348321,0.003,118800.0,118790.0,0.18776]
[1755176348776,0.00823,118800.0,118790.0,0.1886]
[1755176349226,0.00623,118800.0,118790.0,0.1876]
[1755176349433,0.17758016,118800.0,118790.0,0.1876]
[1755176349849,0.88420221,118800.0,118790.0,0.01716]
[1755176350055,0.003,118790.0,118780.0,0.17036]
[1755176350271,0.00623,118790.0,118750.0,0.1760419]
[1755176350451,0.003,118780.0,118760.0,0.15018825]
[1755176350683,0.0181191,118780.0,118760.0,0.15018825]
[1755176351422,0.0181191,118780.0,118770.0,0.17032]
[1755176351626,0.0191191,118780.0,118770.0,0.20237082]
[1755176352252,0.0181191,118780.0,118770.0,0.20237082]
[1755176352961,0.0151191,118780.0,118770.0,0.20237082]
[1755176353125,0.0181191,118780.0,118770.0,0.20237082]
[1755176353325,0.0151191,118780.0,118770.0,0.28509407]
[1755176353525,0.0151191,118780.0,118770.0,0.45548676]
[1755176353750,0.0181191,118780.0,118770.0,0.45648676]
[1755176353949,0.003,118780.0,118770.0,0.47753675]
[1755176354483,0.00323,118830.0,118790.0,0.17677992]
[1755176354814,0.003,118810.0,118800.0,0.25288325]
[1755176354985,0.01510306,118810.0,118800.0,0.25288325]
[1755176355418,0.01510306,118810.0,118800.0,0.42323341]
[1755176355634,0.01510306,118810.0,118800.0,0.25488325]
[1755176356449,0.01510306,118810.0,118800.0,0.25288325]
[1755176356654,0.01510306,118810.0,118800.0,0.29865939]
[1755176357572,0.003,118820.0,118800.0,0.30065939]
[1755176357697,0.01810935,118820.0,118800.0,0.4690086]
[1755176357913,0.01510935,118820.0,118800.0,0.4690086]
[1755176358129,0.002,118810.0,118800.0,0.4680086]
[1755176358457,0.002,118810.0,118800.0,1.09932035]
[1755176358662,0.003,118840.0,118810.0,0.17674383]
[1755176358663,0.0181115,118840.0,118810.0,0.17674383]
[1755176358861,0.003,118830.0,118820.0,0.25272325]
[1755176359088,0.0181115,118830.0,118820.0,0.25472325]
[1755176359289,0.0151115,118830.0,118820.0,0.42304508]
[1755176359679,0.003,118840.0,118820.0,0.43146117]
[1755176359817,0.003,118840.0,118820.0,0.25472325]
[1755176360022,0.003,118840.0,118820.0,0.46150861]
[1755176360227,0.00323,118860.0,118830.0,0.17672177]
[1755176360472,0.00848595,118880.0,118840.0,0.08272325]
[1755176360678,0.003,118860.0,118850.0,0.16992]
[1755176361333,0.003,118860.0,118850.0,0.25264325]
[1755176361546,0.006,118860.0,118850.0,0.27790757]
[1755176361959,0.003,118860.0,118850.0,0.27790757]
[1755176362170,0.003,118860.0,118850.0,0.25264325]
[1755176362367,0.002,118860.0,118850.0,0.25264325]
[1755176362591,0.005,118860.0,118850.0,0.25264325]
[1755176364738,0.002,118860.0,118850.0,0.42092259]
[1755176364968,0.005,118860.0,118850.0,0.25264325]
[1755176365138,0.002,118860.0,118850.0,0.25264325]
[1755176365291,0.005,118860.0,118850.0,0.25264325]
[1755176365904,0.002,118860.0,118850.0,0.25264325]
[1755176366312,0.005,118860.0,118850.0,0.25264325]
[1755176366605,0.005,118860.0,118850.0,0.46321615]
[1755176366779,0.005,118860.0,118850.0,0.29493681]
[1755176367182,0.002,118860.0,118850.0,0.46679037]
[1755176367824,0.003,118870.0,118860.0,0.16826518]
[1755176368040,0.003,118870.0,118860.0,0.25940168]
[1755176368189,0.00323,118900.0,118860.0,0.29739878]
[1755176368392,0.003,118880.0,118870.0,0.25228325]
[1755176368874,0.00623,118880.0,118870.0,0.25224325]
[1755176369078,0.00623,118880.0,118870.0,0.16952]
[1755176369703,0.00623,118880.0,118830.0,0.407465]
[1755176369704,0.003,118860.0,118830.0,0.407465]
[1755176369930,0.003,118860.0,118840.0,0.25220325]
[1755176370138,0.00623,118860.0,118840.0,0.25220325]
[1755176370351,0.00623,118860.0,118840.0,0.08272325]
[1755176370587,0.00523,118860.0,118850.0,0.16944]
[1755176371037,0.002,118860.0,118850.0,0.16944]
[1755176371267,0.002,118860.0,118850.0,0.19465633]
[1755176371492,0.003,118860.0,118850.0,0.19465633]
[1755176371962,0.002,118860.0,118850.0,0.02521633]
[1755176372182,0.002,118850.0,118830.0,0.06182504]
[1755176372394,0.00523,118850.0,118840.0,0.16936]
[1755176373785,0.00423,118850.0,118840.0,0.16936]
[1755176374389,0.00423,118850.0,118820.0,0.03205082]
[1755176374596,0.001,118830.0,118820.0,0.03205082]
[1755176374798,0.00423,118830.0,118820.0,0.16924]
[1755176376213,0.001,118810.0,118800.0,0.269265]
[1755176376435,0.001,118810.0,118800.0,0.438465]
[1755176376687,0.00419,118810.0,118800.0,0.438465]
[1755176376890,0.001,118810.0,118800.0,0.438465]
[1755176377067,0.001,118810.0,118800.0,0.4823115]
[1755176377311,0.001,118810.0,118800.0,0.56503475]
[1755176377522,0.001,118820.0,118800.0,0.56703475]
[1755176377791,0.00319,118830.0,118810.0,0.08272325]
[1755176378049,0.38229877,118850.0,118820.0,0.16912]
[1755176378289,0.36769481,118850.0,118820.0,0.19430432]
[1755176378534,0.00319,118840.0,118820.0,0.19430432]